[Event "*** Titled Tuesday Blitz"]
[Site "Chess.com"]
[Date "2018.11.06"]
[Round "3"]
[White "vpantev"]
[Black "JSMastropiero"]
[Result "1-0"]
[WhiteElo "2535"]
[BlackElo "2292"]
[TimeControl "180+2"]
[EndTime "13:38:19 PST"]
[Termination "vpantev won by checkmate"]

1. d3 {[%clk 0:02:45.6]} 1... c5 {[%clk 0:03:00.1]} 2. c4 {[%clk 0:02:44.8]}
2... Nc6 {[%clk 0:02:59.7]} 3. Nc3 {[%clk 0:02:45.4]} 3... g6 {[%clk 0:03:00.3]}
4. g3 {[%clk 0:02:46.6]} 4... Bg7 {[%clk 0:03:00.9]} 5. Bg2 {[%clk 0:02:47.9]}
5... d6 {[%clk 0:03:00.5]} 6. h4 {[%clk 0:02:49]} 6... h5 {[%clk 0:02:58.8]} 7.
Nf3 {[%clk 0:02:49.1]} 7... Bf5 {[%clk 0:02:55]} 8. Ng5 {[%clk 0:02:49.5]} 8...
Nh6 {[%clk 0:02:47.1]} 9. Bd2 {[%clk 0:02:48]} 9... f6 {[%clk 0:02:41.8]} 10.
Nge4 {[%clk 0:02:45.3]} 10... Qd7 {[%clk 0:02:41.6]} 11. Nd5 {[%clk 0:02:42.3]}
11... O-O {[%clk 0:02:38.4]} 12. Qc1 {[%clk 0:02:41.7]} 12... Nf7 {[%clk
0:02:36.7]} 13. Nf4 {[%clk 0:02:42.1]} 13... e5 {[%clk 0:02:02.7]} 14. Nd5
{[%clk 0:02:41.9]} 14... Nfd8 {[%clk 0:02:02.8]} 15. Nec3 {[%clk 0:02:40.7]}
15... Be6 {[%clk 0:01:59.4]} 16. O-O {[%clk 0:02:41.1]} 16... Bh3 {[%clk
0:01:54.4]} 17. a3 {[%clk 0:02:41.4]} 17... Bxg2 {[%clk 0:01:53.4]} 18. Kxg2
{[%clk 0:02:42.2]} 18... Nd4 {[%clk 0:01:54.2]} 19. Qd1 {[%clk 0:02:39.4]} 19...
a5 {[%clk 0:01:53.1]} 20. e3 {[%clk 0:02:40.4]} 20... N4c6 {[%clk 0:01:52.1]}
21. Kh2 {[%clk 0:02:36.5]} 21... Rb8 {[%clk 0:01:48.2]} 22. Rg1 {[%clk
0:02:36.1]} 22... f5 {[%clk 0:01:45.8]} 23. Rb1 {[%clk 0:02:35.1]} 23... Ne7
{[%clk 0:01:43.4]} 24. b4 {[%clk 0:02:33.8]} 24... axb4 {[%clk 0:01:44]} 25.
axb4 {[%clk 0:02:34.6]} 25... Nxd5 {[%clk 0:01:45.2]} 26. Nxd5 {[%clk
0:02:35.5]} 26... Nc6 {[%clk 0:01:44.7]} 27. bxc5 {[%clk 0:02:35.6]} 27... dxc5
{[%clk 0:01:45.6]} 28. Rb5 {[%clk 0:02:30.2]} 28... Qd6 {[%clk 0:01:34.5]} 29.
Qb3 {[%clk 0:02:30.2]} 29... Rf7 {[%clk 0:01:33.2]} 30. Qa3 {[%clk 0:02:30.1]}
30... Bf8 {[%clk 0:01:33.6]} 31. Rgb1 {[%clk 0:02:29.5]} 31... e4 {[%clk
0:01:23.6]} 32. Bc3 {[%clk 0:02:24.3]} 32... exd3 {[%clk 0:01:22.7]} 33. Rd1
{[%clk 0:02:25.3]} 33... Ne5 {[%clk 0:01:22.9]} 34. Bxe5 {[%clk 0:02:25.9]}
34... Qxe5 {[%clk 0:01:24]} 35. Qxd3 {[%clk 0:02:26.9]} 35... Kh7 {[%clk
0:00:57.4]} 36. Rdb1 {[%clk 0:02:26.9]} 36... Bg7 {[%clk 0:00:46.9]} 37. R1b3
{[%clk 0:02:26.2]} 37... Bf6 {[%clk 0:00:47]} 38. Rb6 {[%clk 0:02:22.8]} 38...
Bxh4 {[%clk 0:00:46.5]} 39. f4 {[%clk 0:02:22.1]} 39... Bxg3+ {[%clk 0:00:45.8]}
40. Kxg3 {[%clk 0:02:22.9]} 40... Qa1 {[%clk 0:00:46.1]} 41. Qb1 {[%clk
0:02:21.5]} 41... Qa5 {[%clk 0:00:42.5]} 42. Rxb7 {[%clk 0:02:19.3]} 42... Rbxb7
{[%clk 0:00:40.7]} 43. Rxb7 {[%clk 0:02:20.3]} 43... Rxb7 {[%clk 0:00:41.7]} 44.
Qxb7+ {[%clk 0:02:21.2]} 44... Kh6 {[%clk 0:00:43.3]} 45. Qb2 {[%clk 0:02:15.1]}
45... Qe1+ {[%clk 0:00:42.4]} 46. Qf2 {[%clk 0:02:16]} 46... Qc1 {[%clk
0:00:27.3]} 47. Qe2 {[%clk 0:02:08.7]} 47... Qg1+ {[%clk 0:00:27.6]} 48. Qg2
{[%clk 0:02:07.9]} 48... Qe1+ {[%clk 0:00:26.8]} 49. Kh3 {[%clk 0:02:07.6]}
49... Qd1 {[%clk 0:00:27.5]} 50. Qg5+ {[%clk 0:02:06.4]} 50... Kg7 {[%clk
0:00:27.9]} 51. Qe7+ {[%clk 0:02:06.6]} 51... Kh6 {[%clk 0:00:29.2]} 52. Qf8+
{[%clk 0:02:07.6]} 52... Kh7 {[%clk 0:00:29.3]} 53. Nf6# {[%clk 0:02:08.7]} 1-0

[Event "*** Titled Tuesday Blitz"]
[Site "Chess.com"]
[Date "2018.11.06"]
[Round "3"]
[White "Mbneu"]
[Black "2165149677570"]
[Result "1-0"]
[WhiteElo "2287"]
[BlackElo "2390"]
[TimeControl "180+2"]
[EndTime "13:38:40 PST"]
[Termination "Mbneu won on time"]

1. d4 {[%clk 0:03:01.9]} 1... Nf6 {[%clk 0:03:00.4]} 2. c4 {[%clk 0:03:02.8]}
2... e6 {[%clk 0:03:00.2]} 3. Nc3 {[%clk 0:03:03.4]} 3... Bb4 {[%clk 0:03:01.1]}
4. Bg5 {[%clk 0:03:04.6]} 4... b6 {[%clk 0:03:01.5]} 5. Nf3 {[%clk 0:03:04.5]}
5... Bb7 {[%clk 0:03:02.2]} 6. e3 {[%clk 0:03:03.4]} 6... h6 {[%clk 0:03:01.9]}
7. Bh4 {[%clk 0:03:04.5]} 7... g5 {[%clk 0:03:02.6]} 8. Bg3 {[%clk 0:03:05.6]}
8... Ne4 {[%clk 0:03:03.6]} 9. Nd2 {[%clk 0:03:06.8]} 9... Nxc3 {[%clk
0:02:47.6]} 10. bxc3 {[%clk 0:03:07.6]} 10... Bxc3 {[%clk 0:02:48.5]} 11. Rc1
{[%clk 0:03:08.5]} 11... Ba5 {[%clk 0:02:47.4]} 12. h4 {[%clk 0:03:07.6]} 12...
d6 {[%clk 0:02:28.8]} 13. hxg5 {[%clk 0:02:59.1]} 13... Qxg5 {[%clk 0:02:30.7]}
14. Rh5 {[%clk 0:02:44.1]} 14... Qg6 {[%clk 0:02:30.5]} 15. Rxa5 {[%clk
0:02:35.8]} 15... bxa5 {[%clk 0:02:26.6]} 16. Qb3 {[%clk 0:02:35.8]} 16... Bc6
{[%clk 0:02:20.9]} 17. Bd3 {[%clk 0:02:34.5]} 17... Qf6 {[%clk 0:02:16.7]} 18.
Be4 {[%clk 0:02:30.5]} 18... Bxe4 {[%clk 0:02:11.8]} 19. Nxe4 {[%clk 0:02:30.7]}
19... Qf5 {[%clk 0:02:11.7]} 20. Qb7 {[%clk 0:02:28.9]} 20... O-O {[%clk
0:02:03.8]} 21. Qxa8 {[%clk 0:02:25.9]} 21... Na6 {[%clk 0:01:53.8]} 22. Qb7
{[%clk 0:01:59.7]} 22... Nb4 {[%clk 0:01:52.2]} 23. Ke2 {[%clk 0:01:59.6]} 23...
d5 {[%clk 0:01:43.8]} 24. cxd5 {[%clk 0:01:48.5]} 24... exd5 {[%clk 0:01:44.3]}
25. Nc5 {[%clk 0:01:49.3]} 25... Qg4+ {[%clk 0:01:43.3]} 26. Kf1 {[%clk
0:01:43.5]} 26... Qh5 {[%clk 0:01:44.3]} 27. Kg1 {[%clk 0:01:41.9]} 27... Qg6
{[%clk 0:01:26.3]} 28. Qxc7 {[%clk 0:01:37.7]} 28... h5 {[%clk 0:01:23.4]} 29.
Qf4 {[%clk 0:01:31.3]} 29... Nxa2 {[%clk 0:01:24.2]} 30. Re1 {[%clk 0:01:17.8]}
30... Nc3 {[%clk 0:01:21.6]} 31. Nd7 {[%clk 0:01:12.4]} 31... a4 {[%clk
0:01:18.7]} 32. Nxf8 {[%clk 0:01:09.6]} 32... Kxf8 {[%clk 0:01:19.4]} 33. Qb8+
{[%clk 0:01:08.5]} 33... Kg7 {[%clk 0:01:19.6]} 34. Be5+ {[%clk 0:01:05.6]}
34... f6 {[%clk 0:01:20.7]} 35. Qc7+ {[%clk 0:01:05.9]} 35... Kh6 {[%clk
0:01:21.6]} 36. Bf4+ {[%clk 0:01:04]} 1-0

[Event "*** Titled Tuesday Blitz"]
[Site "Chess.com"]
[Date "2018.11.06"]
[Round "3"]
[White "AsaHoffmann"]
[Black "Blagorod"]
[Result "1-0"]
[WhiteElo "2061"]
[BlackElo "2079"]
[TimeControl "180+2"]
[EndTime "13:38:46 PST"]
[Termination "AsaHoffmann won by resignation"]

1. d4 {[%clk 0:02:58.6]} 1... d5 {[%clk 0:03:00.8]} 2. Bg5 {[%clk 0:02:58.4]}
2... h6 {[%clk 0:02:58.3]} 3. Bh4 {[%clk 0:02:58.4]} 3... Nf6 {[%clk 0:02:52.2]}
4. Bxf6 {[%clk 0:02:57.8]} 4... exf6 {[%clk 0:02:52.8]} 5. e3 {[%clk 0:02:58.3]}
5... Bd6 {[%clk 0:02:49.7]} 6. Bd3 {[%clk 0:02:58.4]} 6... O-O {[%clk
0:02:49.6]} 7. Qf3 {[%clk 0:02:58.6]} 7... c6 {[%clk 0:02:46.6]} 8. Nd2 {[%clk
0:02:58.6]} 8... a5 {[%clk 0:02:42.4]} 9. Ne2 {[%clk 0:02:58.8]} 9... Na6 {[%clk
0:02:42.2]} 10. a3 {[%clk 0:02:56.3]} 10... Nc7 {[%clk 0:02:38.7]} 11. g4 {[%clk
0:02:55.5]} 11... Ne6 {[%clk 0:02:25.2]} 12. h4 {[%clk 0:02:55]} 12... b5 {[%clk
0:02:18.7]} 13. O-O-O {[%clk 0:02:51.6]} 13... b4 {[%clk 0:02:18.2]} 14. a4
{[%clk 0:02:51.4]} 14... Qe7 {[%clk 0:01:57.9]} 15. Rdg1 {[%clk 0:02:51.1]}
15... c5 {[%clk 0:01:48.4]} 16. dxc5 {[%clk 0:02:49.9]} 16... Bxc5 {[%clk
0:01:23.4]} 17. Ng3 {[%clk 0:02:47.4]} 17... g6 {[%clk 0:01:12.7]} 18. h5 {[%clk
0:02:45.6]} 18... Ng5 {[%clk 0:01:10]} 19. Qe2 {[%clk 0:02:38.2]} 19... Kg7
{[%clk 0:01:05.5]} 20. Nf3 {[%clk 0:02:24.7]} 20... Bxg4 {[%clk 0:00:54.8]} 21.
hxg6 {[%clk 0:02:12.3]} 21... fxg6 {[%clk 0:00:37.9]} 22. Bxg6 {[%clk
0:02:07.4]} 22... f5 {[%clk 0:00:15.3]} 23. Bh5 {[%clk 0:01:59.3]} 23... Nxf3
{[%clk 0:00:10.4]} 24. Bxg4 {[%clk 0:01:55.6]} 24... fxg4 {[%clk 0:00:11.3]} 25.
Nh5+ {[%clk 0:01:53]} 25... Kh7 {[%clk 0:00:10.9]} 26. Rxg4 {[%clk 0:01:52.1]}
26... b3 {[%clk 0:00:03.6]} 27. Rg7+ {[%clk 0:01:47.2]} 27... Qxg7 {[%clk
0:00:03.6]} 28. Nxg7 {[%clk 0:01:47.5]} 28... Kxg7 {[%clk 0:00:05.2]} 29. cxb3
{[%clk 0:01:43.7]} 29... Rac8 {[%clk 0:00:05.4]} 30. Kb1 {[%clk 0:01:43.5]}
30... Bb4 {[%clk 0:00:05.3]} 31. Qa6 {[%clk 0:01:38.1]} 31... Rc7 {[%clk
0:00:04.5]} 32. Qxh6+ {[%clk 0:01:35.5]} 32... Kf7 {[%clk 0:00:06]} 33. Qh7+
{[%clk 0:01:28.2]} 33... Ke6 {[%clk 0:00:06]} 34. Qxc7 {[%clk 0:01:28.2]} 34...
Nd2+ {[%clk 0:00:06.4]} 35. Ka2 {[%clk 0:01:28.4]} 35... Rxf2 {[%clk 0:00:06.6]}
36. Rh6+ {[%clk 0:01:23.8]} 36... Kf5 {[%clk 0:00:06.9]} 37. Qf7+ {[%clk
0:01:22.8]} 37... Ke4 {[%clk 0:00:07.6]} 38. Qxf2 {[%clk 0:01:22.4]} 38... Kd3
{[%clk 0:00:08.4]} 39. Rh5 {[%clk 0:01:20.3]} 39... d4 {[%clk 0:00:08.7]} 40.
Rd5 {[%clk 0:01:19.1]} 40... Kc2 {[%clk 0:00:08.9]} 41. Rxd4 {[%clk 0:01:17.7]}
41... Bc3 {[%clk 0:00:10]} 42. Rxd2+ {[%clk 0:01:16.8]} 42... Bxd2 {[%clk
0:00:10.5]} 43. Qxd2+ {[%clk 0:01:17]} 43... Kxd2 {[%clk 0:00:11.5]} 44. e4
{[%clk 0:01:17.8]} 1-0

[Event "*** Titled Tuesday Blitz"]
[Site "Chess.com"]
[Date "2018.11.06"]
[Round "3"]
[White "evgenysharapov"]
[Black "pultineviciuspaulius"]
[Result "0-1"]
[WhiteElo "2406"]
[BlackElo "2577"]
[TimeControl "180+2"]
[EndTime "13:38:47 PST"]
[Termination "pultineviciuspaulius won by resignation"]

1. c4 {[%clk 0:03:01.9]} 1... Nf6 {[%clk 0:03:01.4]} 2. Nc3 {[%clk 0:03:02.3]}
2... e5 {[%clk 0:03:02.8]} 3. Nf3 {[%clk 0:03:02.7]} 3... Nc6 {[%clk 0:03:04.4]}
4. g3 {[%clk 0:03:03.6]} 4... Bb4 {[%clk 0:03:05.8]} 5. Bg2 {[%clk 0:03:03.8]}
5... Bxc3 {[%clk 0:03:07.2]} 6. dxc3 {[%clk 0:03:03.1]} 6... O-O {[%clk
0:03:09.1]} 7. O-O {[%clk 0:03:03.5]} 7... Re8 {[%clk 0:03:11]} 8. Ne1 {[%clk
0:03:04.1]} 8... h6 {[%clk 0:03:12.2]} 9. Nc2 {[%clk 0:03:04.5]} 9... d6 {[%clk
0:03:12.6]} 10. Ne3 {[%clk 0:03:04.8]} 10... Be6 {[%clk 0:03:14.1]} 11. Nd5
{[%clk 0:03:05.4]} 11... Nd7 {[%clk 0:03:10.6]} 12. Be3 {[%clk 0:03:02.1]} 12...
Nb6 {[%clk 0:03:10.9]} 13. b3 {[%clk 0:02:56.5]} 13... Rb8 {[%clk 0:03:10.8]}
14. Qd2 {[%clk 0:02:52.9]} 14... Ne7 {[%clk 0:03:08.4]} 15. Nxe7+ {[%clk
0:02:39]} 15... Qxe7 {[%clk 0:03:07.3]} 16. a4 {[%clk 0:02:39]} 16... c6 {[%clk
0:02:36.9]} 17. Rfd1 {[%clk 0:02:35.2]} 17... Red8 {[%clk 0:02:37]} 18. a5
{[%clk 0:02:30.1]} 18... Nc8 {[%clk 0:02:36.1]} 19. a6 {[%clk 0:02:24.7]} 19...
bxa6 {[%clk 0:02:36.4]} 20. Qc2 {[%clk 0:02:12.8]} 20... d5 {[%clk 0:02:37]} 21.
cxd5 {[%clk 0:02:08.9]} 21... cxd5 {[%clk 0:02:38.9]} 22. Rxa6 {[%clk
0:02:02.8]} 22... Qb7 {[%clk 0:02:40.2]} 23. Ra3 {[%clk 0:01:45.4]} 23... Qe7
{[%clk 0:02:40.7]} 24. Rda1 {[%clk 0:01:35]} 24... Rb7 {[%clk 0:02:40.1]} 25. c4
{[%clk 0:01:31.8]} 25... Rc7 {[%clk 0:02:41]} 26. Qb2 {[%clk 0:01:21.7]} 26...
dxc4 {[%clk 0:02:34]} 27. bxc4 {[%clk 0:01:18.9]} 27... Bxc4 {[%clk 0:02:35.9]}
28. Ra5 {[%clk 0:01:05.7]} 28... f6 {[%clk 0:02:31.3]} 29. Bf3 {[%clk
0:01:01.3]} 29... a6 {[%clk 0:02:25.2]} 30. Rc1 {[%clk 0:00:51.3]} 30... Bb5
{[%clk 0:02:22.2]} 31. Raa1 {[%clk 0:00:47.9]} 31... Kh8 {[%clk 0:02:08.1]} 32.
Rxc7 {[%clk 0:00:47]} 32... Qxc7 {[%clk 0:02:10]} 33. Rc1 {[%clk 0:00:46.5]}
33... Qd7 {[%clk 0:02:11.2]} 34. h4 {[%clk 0:00:44.6]} 34... Ne7 {[%clk
0:02:09.5]} 35. Be4 {[%clk 0:00:35.3]} 35... Nf5 {[%clk 0:02:08.5]} 36. Bb6
{[%clk 0:00:30.3]} 36... Rc8 {[%clk 0:02:08]} 37. Rxc8+ {[%clk 0:00:27.4]} 37...
Qxc8 {[%clk 0:02:09.9]} 38. Qc2 {[%clk 0:00:27.5]} 38... Qxc2 {[%clk 0:02:09.1]}
39. Bxc2 {[%clk 0:00:28.6]} 39... Nd4 {[%clk 0:02:10.7]} 40. Bxd4 {[%clk
0:00:23.1]} 40... exd4 {[%clk 0:02:12.6]} 41. Kf1 {[%clk 0:00:23.9]} 41... Kg8
{[%clk 0:02:11.5]} 42. Ke1 {[%clk 0:00:25.1]} 42... Kf8 {[%clk 0:02:11.4]} 43.
Kd2 {[%clk 0:00:26.3]} 43... Ke7 {[%clk 0:02:12.8]} 44. e3 {[%clk 0:00:22.5]}
44... d3 {[%clk 0:02:13.1]} 45. Bxd3 {[%clk 0:00:23.1]} 45... Bxd3 {[%clk
0:02:14.3]} 46. Kxd3 {[%clk 0:00:24.3]} 46... f5 {[%clk 0:02:09.2]} 47. f3
{[%clk 0:00:22.3]} 47... Kd6 {[%clk 0:02:08.4]} 48. h5 {[%clk 0:00:22.7]} 48...
a5 {[%clk 0:02:07.7]} 49. Kc4 {[%clk 0:00:23.6]} 49... a4 {[%clk 0:02:02.2]} 50.
Kb4 {[%clk 0:00:24.2]} 50... Kd5 {[%clk 0:02:03.7]} 51. Kxa4 {[%clk 0:00:23.3]}
51... Kc4 {[%clk 0:02:05.6]} 52. e4 {[%clk 0:00:19.7]} 52... fxe4 {[%clk
0:02:06]} 53. fxe4 {[%clk 0:00:21.1]} 53... Kd4 {[%clk 0:02:06.8]} 54. Kb5
{[%clk 0:00:22]} 54... Kxe4 {[%clk 0:02:07.9]} 55. Kc6 {[%clk 0:00:23.3]} 55...
Kf3 {[%clk 0:02:05.2]} 56. Kd6 {[%clk 0:00:24.5]} 56... Kxg3 {[%clk 0:02:06.5]}
57. Ke6 {[%clk 0:00:25.8]} 57... Kg4 {[%clk 0:02:07.1]} 0-1

[Event "*** Titled Tuesday Blitz"]
[Site "Chess.com"]
[Date "2018.11.06"]
[Round "3"]
[White "brother-bear"]
[Black "sandager"]
[Result "0-1"]
[WhiteElo "2027"]
[BlackElo "2130"]
[TimeControl "180+2"]
[EndTime "13:38:47 PST"]
[Termination "sandager won by resignation"]

1. e4 {[%clk 0:03:01.9]} 1... e5 {[%clk 0:03:00.7]} 2. Nc3 {[%clk 0:03:01.5]}
2... Nf6 {[%clk 0:02:59]} 3. Nf3 {[%clk 0:02:57.3]} 3... Nc6 {[%clk 0:02:58.2]}
4. Bb5 {[%clk 0:02:57.9]} 4... Bb4 {[%clk 0:02:58.3]} 5. O-O {[%clk 0:02:54.5]}
5... O-O {[%clk 0:02:58.6]} 6. d3 {[%clk 0:02:55]} 6... d6 {[%clk 0:02:58]} 7.
Bg5 {[%clk 0:02:54.1]} 7... h6 {[%clk 0:02:58.4]} 8. Bxf6 {[%clk 0:02:45.3]}
8... gxf6 {[%clk 0:02:46]} 9. Nd5 {[%clk 0:02:43.8]} 9... Bc5 {[%clk 0:02:40.4]}
10. Nh4 {[%clk 0:02:27.5]} 10... Nd4 {[%clk 0:02:28.3]} 11. Bc4 {[%clk
0:02:26.3]} 11... c6 {[%clk 0:02:18.8]} 12. Ne3 {[%clk 0:02:26.2]} 12... f5
{[%clk 0:01:35.2]} 13. c3 {[%clk 0:02:18.2]} 13... Qxh4 {[%clk 0:01:32.2]} 14.
cxd4 {[%clk 0:02:14.7]} 14... Bxd4 {[%clk 0:01:31.6]} 15. Nxf5 {[%clk
0:01:29.2]} 15... Bxf5 {[%clk 0:01:29.9]} 16. exf5 {[%clk 0:01:30]} 16... Kh7
{[%clk 0:01:27.5]} 17. Qf3 {[%clk 0:01:23.1]} 17... d5 {[%clk 0:01:26.4]} 18.
Bb3 {[%clk 0:01:19.8]} 18... Rg8 {[%clk 0:01:27.2]} 19. Rab1 {[%clk 0:00:58.3]}
19... Rg5 {[%clk 0:01:24.2]} 20. f6 {[%clk 0:00:54.1]} 20... Rag8 {[%clk
0:01:22.3]} 21. g3 {[%clk 0:00:53.5]} 21... Rxg3+ {[%clk 0:01:22.5]} 22. hxg3
{[%clk 0:00:34.7]} 22... Rxg3+ {[%clk 0:01:22.8]} 23. Qxg3 {[%clk 0:00:33.4]}
23... Qxg3+ {[%clk 0:01:23.7]} 24. Kh1 {[%clk 0:00:34.6]} 24... Bxf2 {[%clk
0:01:15.4]} 25. Rxf2 {[%clk 0:00:21.8]} 25... Qxf2 {[%clk 0:01:16]} 26. Bd1
{[%clk 0:00:19.7]} 26... Qxf6 {[%clk 0:01:12.7]} 27. Kg2 {[%clk 0:00:19.1]}
27... Qg5+ {[%clk 0:01:11.9]} 28. Kf2 {[%clk 0:00:18.4]} 28... Qd2+ {[%clk
0:01:12]} 29. Be2 {[%clk 0:00:19.5]} 29... f5 {[%clk 0:01:03.1]} 30. a3 {[%clk
0:00:16.5]} 30... f4 {[%clk 0:01:03.4]} 31. b4 {[%clk 0:00:14.2]} 31... e4
{[%clk 0:01:03.4]} 32. dxe4 {[%clk 0:00:13.9]} 32... dxe4 {[%clk 0:01:04.5]} 33.
Rd1 {[%clk 0:00:15.3]} 33... Qe3+ {[%clk 0:01:03.5]} 34. Kf1 {[%clk 0:00:16.4]}
34... Qh3+ {[%clk 0:00:57.8]} 35. Ke1 {[%clk 0:00:15.5]} 35... Qg3+ {[%clk
0:00:58.2]} 36. Kd2 {[%clk 0:00:15.1]} 36... Qe3+ {[%clk 0:00:58.1]} 37. Ke1
{[%clk 0:00:14]} 37... f3 {[%clk 0:00:58.2]} 0-1

[Event "*** Titled Tuesday Blitz"]
[Site "Chess.com"]
[Date "2018.11.06"]
[Round "3"]
[White "talento10"]
[Black "ShadyH9"]
[Result "1-0"]
[WhiteElo "2440"]
[BlackElo "2274"]
[TimeControl "180+2"]
[EndTime "13:38:52 PST"]
[Termination "talento10 won by resignation"]

1. e4 {[%clk 0:03:01.9]} 1... c5 {[%clk 0:03:00.3]} 2. Nf3 {[%clk 0:03:02.3]}
2... Nc6 {[%clk 0:03:01.5]} 3. d4 {[%clk 0:03:03.5]} 3... cxd4 {[%clk
0:03:03.4]} 4. Nxd4 {[%clk 0:03:05.4]} 4... g6 {[%clk 0:03:04.6]} 5. Nc3 {[%clk
0:03:02.8]} 5... Bg7 {[%clk 0:03:05.3]} 6. Be3 {[%clk 0:03:04.3]} 6... Nf6
{[%clk 0:03:05.2]} 7. Nxc6 {[%clk 0:03:05.4]} 7... bxc6 {[%clk 0:03:05.8]} 8. e5
{[%clk 0:03:06.6]} 8... Ng8 {[%clk 0:03:07]} 9. f4 {[%clk 0:03:07.6]} 9... f6
{[%clk 0:03:08.3]} 10. Bd4 {[%clk 0:02:43.3]} 10... Qa5 {[%clk 0:03:09]} 11. Qe2
{[%clk 0:02:41.3]} 11... fxe5 {[%clk 0:03:10.1]} 12. Bxe5 {[%clk 0:02:40.1]}
12... Nf6 {[%clk 0:02:42.9]} 13. O-O-O {[%clk 0:02:37.7]} 13... O-O {[%clk
0:02:32.9]} 14. Qc4+ {[%clk 0:02:27.8]} 14... Kh8 {[%clk 0:02:06.8]} 15. Be2
{[%clk 0:02:28.9]} 15... d6 {[%clk 0:01:34.3]} 16. Qxc6 {[%clk 0:02:24.2]} 16...
Bd7 {[%clk 0:01:30.7]} 17. Qa6 {[%clk 0:02:10.1]} 17... Qxa6 {[%clk 0:01:26.4]}
18. Bxa6 {[%clk 0:02:12]} 18... dxe5 {[%clk 0:01:27.5]} 19. fxe5 {[%clk
0:02:13.9]} 19... Bg4 {[%clk 0:01:28.5]} 20. Rd4 {[%clk 0:02:07.3]} 20... Bc8
{[%clk 0:01:23.9]} 21. Bxc8 {[%clk 0:02:00.8]} 21... Rfxc8 {[%clk 0:01:14.1]}
22. exf6 {[%clk 0:01:56.6]} 22... Bxf6 {[%clk 0:01:15]} 23. Rd3 {[%clk
0:01:58.5]} 23... Bxc3 {[%clk 0:01:14.7]} 24. bxc3 {[%clk 0:01:57.7]} 24... Rc7
{[%clk 0:01:08.9]} 25. Re1 {[%clk 0:01:55.2]} 25... Rac8 {[%clk 0:01:07.7]} 26.
Rde3 {[%clk 0:01:56.5]} 26... Rxc3 {[%clk 0:00:54.3]} 27. Rxc3 {[%clk
0:01:58.4]} 27... Rxc3 {[%clk 0:00:56.2]} 28. Rxe7 {[%clk 0:02:00]} 28... Ra3
{[%clk 0:00:56.1]} 29. Kb2 {[%clk 0:01:58.7]} 29... Ra6 {[%clk 0:00:56.6]} 30.
c4 {[%clk 0:01:57.6]} 30... Kg8 {[%clk 0:00:57.5]} 31. Kb3 {[%clk 0:01:57.1]}
31... h5 {[%clk 0:00:57.3]} 32. a4 {[%clk 0:01:57.3]} 32... Kf8 {[%clk
0:00:58.5]} 33. Rb7 {[%clk 0:01:55.7]} 33... Ke8 {[%clk 0:00:56.3]} 34. Kb4
{[%clk 0:01:56.5]} 34... Kd8 {[%clk 0:00:57.3]} 35. Kb5 {[%clk 0:01:55.6]} 35...
Rf6 {[%clk 0:00:47.8]} 36. Rxa7 {[%clk 0:01:52.5]} 36... Rf2 {[%clk 0:00:48.4]}
37. g3 {[%clk 0:01:49.9]} 37... Rxh2 {[%clk 0:00:47.7]} 38. Rg7 {[%clk 0:01:51]}
38... Rb2+ {[%clk 0:00:45.6]} 39. Kc5 {[%clk 0:01:51.1]} 39... Ra2 {[%clk
0:00:41.4]} 40. Kb4 {[%clk 0:01:50.5]} 40... Rb2+ {[%clk 0:00:39.6]} 41. Kc3
{[%clk 0:01:51.4]} 41... Rg2 {[%clk 0:00:15.9]} 42. Rxg6 {[%clk 0:01:48.8]}
42... h4 {[%clk 0:00:17.2]} 43. Kb4 {[%clk 0:01:49.3]} 43... Rxg3 {[%clk
0:00:17.7]} 44. Rh6 {[%clk 0:01:50.6]} 44... Rh3 {[%clk 0:00:14.7]} 45. a5
{[%clk 0:01:51.6]} 45... Rh1 {[%clk 0:00:15.4]} 46. a6 {[%clk 0:01:52.7]} 46...
h3 {[%clk 0:00:11.8]} 47. a7 {[%clk 0:01:49.8]} 47... Ra1 {[%clk 0:00:10.9]} 48.
a8=Q+ {[%clk 0:01:48.3]} 1-0